bitfinex-derivatives/quotes_SOLF0:USTF0_20250110
["timestamp","ask_amount","ask_price","bid_price","bid_amount"]
[1736520884079,19.76005796,187.23,187.06,19.76005796]
[1736520884279,2.6719,187.14,187.03,4.745]
[1736520884484,19.76005796,187.17,187.03,4.745]
[1736520884691,19.76005796,187.17,187.06,2.673]
[1736520884886,2.6723,187.12,187.06,2.673]
[1736520885186,6.04,187.15,187.09,2.6726]
[1736520885382,2.672,187.14,187.03,24.50505796]
[1736520885588,6.04,187.15,187.03,24.50505796]
[1736520885783,19.76005796,187.2,187.06,19.76005796]
[1736520885990,6.04,187.22,187.06,19.76005796]
[1736520886593,19.76005796,187.2,187.06,19.76005796]
[1736520886889,0.85889786,187.19,187.07,2.6728]
[1736520887089,2.6727,187.09,187.03,24.50505796]
[1736520887684,2.6727,187.09,187.03,4.745]
[1736520887884,21.27165796,187.17,187.03,4.745]
[1736520888089,2.6728,187.08,187.04,2.6733]
[1736520889193,2.6728,187.08,187.05,2.6732]
[1736520889387,21.27165796,187.17,187.03,4.745]
[1736520889698,19.76005796,187.14,187.04,2.6732]
[1736520889887,19.76005796,187.14,187.03,1.6258]
[1736520890392,19.76005796,187.14,187.05,2.6731]
[1736520891094,6.04,187.13,187.03,4.2992]
[1736520891289,6.04,187.13,187.03,1.6258]
[1736520891490,2.6727,187.09,187.03,1.6258]
[1736520891694,2.6727,187.09,187.04,2.6733]
[1736520892292,2.6728,187.08,187.03,1.6258]
[1736520892494,2.6728,187.08,187.03,4.2992]
[1736520892883,6.04,187.13,187.03,1.6258]
[1736520893083,19.76005796,187.11,187.01,2.6737]
[1736520893490,19.76005796,187.11,186.98,1.6005]
[1736520893691,2.673,187.07,187.03,2.6735]
[1736520893894,6.04,187.13,186.98,1.6005]
[1736520894791,19.76005796,187.11,187.02,2.6736]
[1736520895191,19.76005796,187.11,186.98,1.6005]
[1736520895398,2.6731,187.06,187.02,2.6736]
[1736520895788,19.76005796,187.11,186.98,1.6005]
[1736520895988,2.6726,187.09,187.04,2.6732]
[1736520896188,2.6726,187.09,186.98,1.6005]
[1736520896687,1.5116,187.17,187.03,19.76005796]
[1736520897196,2.6721,187.13,187.09,2.6725]
[1736520897397,19.76005796,187.2,187.03,19.76005796]
[1736520897791,19.76005796,187.2,187.1,2.6724]
[1736520897986,19.76005796,187.2,187.03,19.76005796]
[1736520898494,0.85816267,187.19,187.03,19.76005796]
[1736520898693,19.76005796,187.17,187.0,25.80005796]
[1736520898894,0.85816267,187.16,187.0,25.80005796]
[1736520899188,19.76005796,187.17,187.03,19.76005796]
[1736520899392,19.76005796,187.2,187.03,19.76005796]
[1736520899700,2.6717,187.16,187.12,2.6722]
[1736520899893,29.15605796,187.23,187.06,19.76005796]
[1736520900096,0.85765528,187.22,187.07,4.9861]
[1736520900296,19.76005796,187.2,187.07,4.9861]
[1736520900699,0.8575323,187.19,187.07,4.9861]
[1736520901095,2.6713,187.19,187.14,2.6719]
[1736520901294,6.04,187.22,187.07,4.9861]
[1736520901496,19.76005796,187.2,187.07,4.9861]
[1736520901693,2.6719,187.14,187.08,2.6728]
[1736520901893,2.6719,187.14,187.07,4.9861]
[1736520902093,19.76005796,187.2,187.07,4.9861]
[1736520902293,19.76005796,187.17,187.07,7.6589]
[1736520902497,19.76005796,187.17,187.07,4.9861]
[1736520902703,19.76005796,187.2,187.07,4.9861]
[1736520903102,21.28965796,187.26,187.08,19.76005796]
[1736520903312,2.6708,187.23,187.18,2.6712]
[1736520903600,7.5696,187.26,187.11,19.76005796]
[1736520903803,2.6708,187.23,187.11,19.76005796]
[1736520904006,21.28965796,187.26,187.11,19.76005796]
[1736520904299,0.85609627,187.25,187.08,19.76005796]
[1736520904505,19.76005796,187.23,187.08,19.76005796]
[1736520904805,19.76005796,187.2,187.07,4.9861]
[1736520905396,196.8701,187.26,187.07,4.9861]
[1736520905397,0.85570623,187.19,187.07,4.9861]
[1736520905599,19.76005796,187.14,187.01,7.28833805]
[1736520905805,19.76005796,187.14,187.01,8.79233805]
[1736520906006,0.85540796,187.13,187.01,1.504]
[1736520906202,2.6728,187.08,187.03,2.6735]
[1736520906403,19.76005796,187.11,187.01,1.504]
[1736520906797,2.6728,187.08,187.03,2.6735]
[1736520907003,19.76005796,187.14,187.03,2.6735]
[1736520907198,2.6726,187.1,187.01,1.504]
[1736520907400,3.2271,187.17,187.01,1.504]
[1736520907401,22.98715796,187.17,187.01,1.504]
[1736520907601,22.98715796,187.17,187.02,19.76005796]
[1736520907799,2.6715,187.17,187.11,2.6723]
[1736520908001,107.69272421,187.2,187.05,19.76005796]
[1736520908298,6.02,187.22,187.05,19.76005796]
[1736520908498,19.76005796,187.2,187.05,19.76005796]
[1736520908694,0.8554767,187.19,187.05,19.76005796]
[1736520909001,19.76005796,187.2,187.05,19.76005796]
[1736520909198,2.6718,187.15,187.05,19.76005796]
[1736520909600,19.76005796,187.2,187.02,19.76005796]
[1736520909803,19.76005796,187.17,187.02,19.76005796]
[1736520910306,0.85569278,187.16,187.01,1.504]
[1736520911597,2.6719,187.15,187.09,2.6725]
[1736520911900,19.76005796,187.17,187.09,2.6725]
[1736520912095,19.76005796,187.17,187.02,19.76005796]
[1736520912300,19.76005796,187.17,187.07,2.6728]
[1736520912902,19.76005796,187.2,187.01,1.504]
[1736520913104,209.76005796,187.23,187.05,19.76005796]
[1736520913403,19.76005796,187.2,187.1,2.6725]
[1736520913904,19.76005796,187.2,187.05,19.76005796]
[1736520914104,0.85438622,187.19,187.02,19.76005796]
[1736520914306,0.85427724,187.18,187.02,19.76005796]
[1736520914507,0.85427724,187.19,187.02,19.76005796]
[1736520914800,2.672,187.14,187.02,19.76005796]
[1736520915197,2.672,187.14,187.09,2.6726]
[1736520915393,19.76005796,187.2,187.02,19.76005796]
[1736520915599,19.76005796,187.17,187.02,19.76005796]
[1736520915806,19.76005796,187.2,187.02,19.76005796]
[1736520916105,2.6723,187.12,187.02,19.76005796]
[1736520916305,2.6723,187.12,187.07,2.6728]
[1736520917008,19.76005796,187.2,187.09,2.6726]
[1736520917208,0.85459879,187.19,187.09,2.6726]
[1736520917401,0.85459879,187.19,187.05,19.76005796]
[1736520917602,171.02160396,187.26,187.09,19.76005796]
[1736520917799,0.85508363,187.24,187.12,19.76005796]
[1736520918107,147.888946,187.26,187.21,2.6708]
[1736520918308,147.888946,187.26,187.15,19.76005796]
[1736520918808,147.888946,187.26,187.18,19.76005796]
[1736520919006,25.78005796,187.35,187.19,4.5978]
[1736520919206,2.67,187.28,187.19,4.5978]
[1736520919407,1.71181696,187.34,187.19,4.5978]
[1736520919609,2.6697,187.3,187.23,2.6706]
[1736520919801,0.85590841,187.34,187.19,4.5978]
[1736520920105,0.85607909,187.33,187.19,4.5978]
[1736520920608,0.85607909,187.33,187.21,19.76005796]
[1736520920807,0.85607909,187.33,187.24,19.76005796]
[1736520921008,0.85590841,187.34,187.27,19.76005796]
[1736520921206,0.85590841,187.34,187.28,3.1834]
[1736520922409,0.85590841,187.34,187.2,19.76005796]
[1736520922611,2.6695,187.32,187.21,3.1834]
[1736520922814,0.85590841,187.34,187.21,3.1834]
[1736520923003,19.76005796,187.35,187.21,3.1834]
[1736520923206,0.85742197,187.34,187.21,3.1834]
[1736520923408,6.02,187.37,187.24,19.76005796]
[1736520923604,6.02,187.37,187.28,2.6699]
[1736520923605,2.6692,187.34,187.28,2.6699]
[1736520923911,6.02,187.37,187.21,3.1834]
[1736520924102,0.85739257,187.36,187.21,3.1834]
[1736520924503,6.02,187.37,187.21,3.1834]
[1736520924811,6.02,187.37,187.21,22.94345796]
[1736520925009,0.85709808,187.36,187.21,22.94345796]
[1736520925512,6.02,187.37,187.29,2.6697]
[1736520925709,6.02,187.37,187.21,22.94345796]
[1736520925912,19.76005796,187.41,187.24,19.76005796]
[1736520926211,19.76005796,187.38,187.21,22.94345796]
[1736520926413,2.6695,187.32,187.21,22.94345796]
[1736520927010,19.76005796,187.38,187.21,22.94345796]
[1736520927210,0.85660657,187.37,187.21,22.94345796]
[1736520927412,0.85660657,187.37,187.25,2.6702]
[1736520927613,2.6697,187.3,187.25,2.6702]
[1736520927906,19.76005796,187.38,187.21,22.94345796]
[1736520927907,19.76005796,187.32,187.21,3.1834]
[1736520928107,2.6706,187.24,187.21,1.5466]
[1736520928311,19.76005796,187.29,187.21,1.5466]
[1736520928713,2.6704,187.25,187.21,1.5466]
[1736520928914,19.76005796,187.29,187.21,1.5466]
[1736520929113,0.85588258,187.28,187.21,1.5466]
[1736520929308,1.5365,187.31,187.21,1.5466]
[1736520929514,19.76005796,187.29,187.21,1.5466]
[1736520930115,1.5365,187.31,187.21,1.5466]
[1736520930315,6.02,187.33,187.21,1.5466]
[1736520930316,2.6698,187.3,187.21,1.5466]
[1736520930510,19.76005796,187.32,187.21,1.5466]
[1736520930705,0.85657329,187.31,187.21,1.5466]
[1736520930910,2.6699,187.28,187.21,1.5466]
[1736520931213,21.39205796,187.32,187.21,1.5466]
[1736520931714,0.85701519,187.31,187.22,2.6708]
[1736520932018,19.76005796,187.29,187.21,1.5466]
[1736520932419,21.39205796,187.32,187.21,1.5466]
[1736520932619,21.39205796,187.32,187.15,1.5099]
[1736520932620,1.632,187.32,187.15,1.5099]
[1736520932821,19.76005796,187.26,187.17,2.6715]
[1736520933118,2.6708,187.22,187.17,2.6715]
[1736520933915,19.76005796,187.26,187.15,3.0369]
[1736520934221,19.76005796,187.23,187.06,19.76005796]
[1736520934416,25.78005796,187.23,187.08,1.6029]
[1736520934610,3.0286,187.22,187.08,1.6029]
[1736520935014,2.6714,187.18,187.13,2.672]
[1736520935418,3.0286,187.22,187.08,1.6029]
[1736520935721,6.02,187.23,187.09,19.76005796]
[1736520937209,2.6708,187.22,187.18,2.6712]
[1736520937410,6.02,187.23,187.12,19.76005796]
[1736520937622,6.02,187.23,187.13,1.6088]
[1736520937823,2.6708,187.22,187.18,2.6713]
[1736520938023,1.5113,187.28,187.18,2.6713]
[1736520938224,2.6709,187.22,187.16,2.6715]
[1736520938520,19.76005796,187.23,187.08,1.6029]
[1736520938722,2.6712,187.19,187.13,2.6719]
[1736520939022,19.76005796,187.26,187.09,21.34445796]
[1736520939218,19.76005796,187.23,187.09,21.34445796]
[1736520939423,19.76005796,187.2,187.09,1.5844]
[1736520940017,2.672,187.14,187.09,4.257]
[1736520940219,25.78005796,187.2,187.08,1.5798]
[1736520940418,3.1658,187.19,187.08,1.5798]
[1736520940716,0.85439716,187.18,187.08,1.5798]
[1736520940919,0.85439716,187.18,187.07,1.6392]
[1736520941319,3.1658,187.19,187.08,2.6727]
[1736520941522,0.85445915,187.18,187.08,2.6727]
[1736520941917,2.672,187.14,187.08,2.6727]
[1736520942123,2.672,187.14,187.07,1.6392]
[1736520942322,2.672,187.14,187.09,2.6726]
[1736520942525,2.6717,187.16,187.07,1.6392]
[1736520942920,2.6717,187.16,187.11,2.6722]
[1736520943121,3.1658,187.19,187.07,1.6392]
[1736520943326,6.02,187.2,187.14,2.6718]
[1736520943623,6.02,187.2,187.07,1.6392]
[1736520943624,1.518,187.25,187.09,19.76005796]
[1736520943814,20.61505658,187.24,187.09,19.76005796]
[1736520944017,19.76005796,187.24,187.09,19.76005796]
[1736520944215,0.85497004,187.23,187.07,1.6392]
[1736520944421,19.76005796,187.21,187.07,1.6392]
[1736520944619,19.76005796,187.21,187.1,2.6723]
[1736520944620,2.6718,187.15,187.1,2.6723]
[1736520944826,19.76005796,187.21,187.07,1.6392]
[1736520945022,0.85460431,187.2,187.09,2.6726]
[1736520945328,0.85460431,187.2,187.07,1.6392]
[1736520945721,19.76005796,187.21,187.11,2.6723]
[1736520946025,19.76005796,187.21,187.07,1.6392]
[1736520946329,0.85421938,187.2,187.07,1.6392]
[1736520946516,2.672,187.14,187.07,1.6392]
[1736520946718,19.76005796,187.21,187.11,2.6723]
[1736520947022,0.85446161,187.2,187.11,2.6723]
[1736520947422,19.76005796,187.21,187.11,2.6723]
[1736520947623,2.6712,187.19,187.07,1.6392]
[1736520947820,2.6712,187.19,187.09,19.76005796]
[1736520948020,19.76005796,187.3,187.12,19.76005796]
[1736520948223,0.85531684,187.27,187.18,19.76005796]
[1736520948524,108.20596406,187.33,187.25,2.6703]
[1736520948525,88.4459061,187.33,187.25,2.6703]
[1736520948732,88.4459061,187.33,187.21,19.76005796]
[1736520948923,21.29365796,187.35,187.21,19.76005796]
[1736520949229,0.85559546,187.34,187.22,1.6557]
[1736520949621,19.76005796,187.32,187.19,1.636]
[1736520949822,1.5336,187.35,187.19,1.636]
[1736520949823,19.76005796,187.29,187.19,1.636]
[1736520950024,6.02,187.28,187.19,1.636]
[1736520950628,2.6708,187.22,187.19,1.636]
[1736520950825,19.76005796,187.26,187.14,1.6557]
[1736520951025,2.6712,187.19,187.14,1.6557]
[1736520951225,1.5693,187.27,187.13,3.2435]
[1736520951226,19.76005796,187.23,187.13,1.636]
[1736520951530,2.671,187.2,187.13,1.636]
[1736520951832,19.76005796,187.23,187.13,1.636]
[1736520952031,2.6718,187.15,187.1,2.6724]
[1736520952233,19.76005796,187.23,187.08,1.5411]
[1736520952432,0.85526012,187.22,187.08,1.5411]
[1736520952624,2.6715,187.18,187.08,1.5411]
[1736520953134,19.76005796,187.23,187.08,1.5411]
[1736520953323,2.6715,187.17,187.11,2.6723]
[1736520953727,19.76005796,187.23,187.11,2.6723]
[1736520953927,0.85517347,187.22,187.08,1.5411]
[1736520954334,19.76005796,187.23,187.08,1.5411]
[1736520954529,2.6715,187.18,187.09,2.6726]
[1736520954733,19.76005796,187.23,187.09,2.6726]
[1736520954934,0.85486712,187.22,187.08,1.5411]
[1736520955134,19.76005796,187.2,187.08,1.5411]
[1736520955337,6.02,187.19,187.08,1.5411]
[1736520957839,19.76005796,187.2,187.08,1.5411]
[1736520958237,2.6715,187.18,187.08,1.5411]
[1736520958540,6.02,187.21,187.08,1.5411]
[1736520958838,2.6715,187.17,187.12,2.6721]
[1736520959139,1.7291,187.27,187.12,19.76005796]
[1736520959140,1.5693,187.27,187.12,19.76005796]
[1736520959340,0.85427691,187.26,187.22,2.6707]
[1736520959541,1.636,187.31,187.18,19.76005796]
[1736520959745,1.636,187.31,187.19,3.1911]
[1736520959945,2.67,187.28,187.19,3.1911]
[1736520960139,1.636,187.31,187.19,3.1911]
[1736520960646,1.5241,187.34,187.19,3.1911]
[1736520960849,0.85422497,187.33,187.19,3.1911]
[1736520961041,19.76005796,187.32,187.19,3.1911]
[1736520961240,20.61421169,187.32,187.19,3.1911]
[1736520961436,0.85415373,187.31,187.19,3.1911]
[1736520961635,0.85415373,187.31,187.2,2.671]
[1736520961840,0.85415373,187.31,187.19,3.1911]
[1736520962247,2.6703,187.26,187.2,2.671]
[1736520962450,1.5241,187.34,187.19,3.1911]
[1736520962837,0.85406251,187.33,187.19,3.1911]
[1736520963037,19.76005796,187.38,187.21,19.76005796]
[1736520963345,7.7646,187.4,187.19,3.1911]
[1736520963346,2.6689,187.35,187.29,2.6697]
[1736520963551,1.7446,187.4,187.24,19.76005796]
[1736520963849,88.4459061,187.42,187.3,19.76005796]
[1736520964050,88.4459061,187.42,187.31,4.8337]
[1736520964546,20.61497996,187.41,187.31,4.8337]
[1736520964745,19.76005796,187.41,187.31,4.8337]
[1736520964940,22.89065796,187.44,187.31,4.8337]
[1736520965144,0.85547337,187.43,187.31,4.8337]
[1736520965642,0.85547337,187.43,187.31,1.656]
[1736520965643,19.76005796,187.41,187.31,1.656]
[1736520965844,19.76005796,187.38,187.25,3.1366]
[1736520966047,19.76005796,187.38,187.25,4.7926]
[1736520966248,0.855297,187.37,187.25,4.7926]
[1736520966849,25.78005796,187.41,187.25,4.7926]
[1736520967044,0.8549795,187.4,187.25,4.7926]
[1736520967245,2.6686,187.38,187.31,2.6694]
[1736520967445,6.02,187.41,187.26,19.76005796]
[1736520967844,2.6684,187.39,187.3,2.6696]
[1736520968044,6.02,187.41,187.26,19.76005796]
[1736520968246,3.1306,187.44,187.29,19.76005796]
[1736520968544,3.1306,187.44,187.34,2.669]
[1736520968745,0.85421459,187.43,187.29,19.76005796]
[1736520968952,2.6675,187.45,187.39,2.6683]
[1736520969249,19.76005796,187.5,187.35,19.76005796]
[1736520969453,0.85426931,187.49,187.36,3.0611]
[1736520969652,0.85426931,187.51,187.36,3.0611]
[1736520969954,0.85407605,187.5,187.36,3.0611]
[1736520970143,35.1420634,187.52,187.36,3.0611]
[1736520970345,0.85440106,187.51,187.36,3.0611]
[1736520970741,2.6669,187.5,187.44,2.6676]
[1736520970944,2.6669,187.5,187.38,31.9904634]
[1736520970945,31.9904634,187.56,187.41,31.9904634]
[1736520971152,0.85488471,187.55,187.42,1.6618]
[1736520971349,2.6666,187.52,187.46,2.6672]
[1736520971648,31.9904634,187.59,187.44,31.9904634]
[1736520971847,0.85541406,187.58,187.45,3.0707]
[1736520972152,31.9904634,187.59,187.45,3.0707]
[1736520972352,0.855486,187.58,187.45,3.0707]
[1736520972653,2.6665,187.52,187.46,2.6672]
[1736520973052,31.9904634,187.59,187.46,2.6672]
[1736520973350,2.6666,187.52,187.47,2.6672]
[1736520973543,31.9904634,187.59,187.47,2.6672]
[1736520973749,31.9904634,187.56,187.45,3.0707]
[1736520974146,2.6664,187.53,187.45,3.0707]
[1736520974353,31.9904634,187.56,187.45,3.0707]
[1736520974854,31.9904634,187.59,187.47,2.6672]
[1736520975151,31.9904634,187.59,187.45,3.0707]
[1736520975349,31.9904634,187.59,187.47,2.6672]
[1736520975546,31.9904634,187.59,187.45,3.0707]
[1736520975951,2.6662,187.55,187.49,2.6668]
[1736520976352,31.9904634,187.59,187.49,2.6668]
[1736520976551,31.9904634,187.59,187.45,3.0707]
[1736520976552,2.6662,187.54,187.47,2.6671]
[1736520976753,31.9904634,187.56,187.45,3.0707]
[1736520977450,31.9904634,187.56,187.45,1.521]
[1736520977655,31.9904634,187.53,187.42,1.6618]
[1736520978155,2.6672,187.47,187.42,1.6618]
[1736520978359,2.6672,187.47,187.39,3.1292]
[1736520978658,31.9904634,187.5,187.39,3.1292]
[1736520979050,37.9904634,187.53,187.39,3.1292]
[1736520979252,31.9904634,187.5,187.39,3.1292]
[1736520979452,37.9904634,187.53,187.39,3.1292]
[1736520979855,31.9904634,187.5,187.39,3.1292]
[1736520980050,31.9904634,187.47,187.39,3.1292]
[1736520980256,2.6681,187.41,187.36,2.6687]
[1736520980456,31.9904634,187.44,187.3,1.5513]
[1736520980955,1.6296,187.46,187.3,1.5513]
[1736520981354,2.6682,187.41,187.34,2.6689]
[1736520981556,1.5277,187.45,187.3,1.5513]
[1736520982156,1.6296,187.46,187.32,31.9904634]
[1736520982354,2.6678,187.44,187.37,2.6685]
[1736520982657,1.6296,187.46,187.37,2.6685]
[1736520983055,1.6296,187.46,187.35,2.6688]
[1736520983955,2.668,187.42,187.36,2.6687]
[1736520984159,1.6296,187.46,187.3,1.5513]
[1736520984658,1.6296,187.46,187.35,2.6688]
[1736520985759,31.9904634,187.5,187.35,31.9904634]
[1736520985955,31.9904634,187.53,187.38,31.9904634]
[1736520986152,31.9904634,187.53,187.45,2.6674]
[1736520986354,31.9904634,187.59,187.41,31.9904634]
[1736520986563,0.85563771,187.58,187.44,31.9904634]
[1736520986753,31.9904634,187.59,187.41,31.9904634]
[1736520987061,31.9904634,187.59,187.46,2.6673]
[1736520987355,31.9904634,187.59,187.41,31.9904634]
[1736520987564,2.6664,187.53,187.41,31.9904634]
[1736520987753,1.7471,187.6,187.41,31.9904634]
[1736520987953,2.6669,187.5,187.45,2.6674]
[1736520988153,31.9904634,187.56,187.39,1.6255]
[1736520988360,31.9904634,187.5,187.39,1.6255]
[1736520988564,2.6675,187.45,187.39,1.6255]
[1736520988761,31.9904634,187.5,187.36,3.2405]
[1736520989361,2.6678,187.43,187.36,3.2405]
[1736520989664,31.9904634,187.47,187.36,3.2405]
[1736520989965,2.6679,187.43,187.38,2.6684]
[1736520990154,31.9904634,187.47,187.36,3.2405]
[1736520990460,2.6677,187.44,187.36,3.2405]
[1736520990652,31.9904634,187.47,187.36,3.2405]
[1736520991064,2.6675,187.45,187.36,3.2405]
[1736520991464,31.9904634,187.5,187.4,2.6682]
[1736520991465,2.6671,187.48,187.4,2.6682]
[1736520991663,3.1838,187.51,187.36,3.2405]
[1736520991861,31.9904634,187.56,187.36,3.2405]
[1736520992164,2.6662,187.55,187.44,31.9904634]
[1736520992363,31.9904634,187.59,187.45,4.7994]
[1736520992664,2.6658,187.57,187.53,2.6663]
[1736520992865,1.5315,187.6,187.53,2.6663]
[1736520993164,1.5315,187.6,187.45,4.7994]
[1736520993465,2.6657,187.58,187.53,2.6663]
[1736520993658,37.9904634,187.62,187.53,2.6663]
[1736520993960,2.6658,187.57,187.45,4.7994]
[1736520994461,31.9904634,187.59,187.45,4.7994]
[1736520994663,2.6661,187.55,187.45,4.7994]
[1736520994860,31.9904634,187.59,187.45,4.7994]
[1736520995055,2.6661,187.55,187.45,4.7994]
[1736520995467,31.9904634,187.56,187.45,4.7994]
[1736520996061,31.9904634,187.56,187.49,2.6669]
[1736520996264,31.9904634,187.56,187.45,4.7994]
[1736520996964,31.9904634,187.53,187.38,31.9904634]
[1736520997167,31.9904634,187.53,187.42,1.5367]
[1736520997465,1.5146,187.58,187.42,1.5367]
[1736520997466,31.9904634,187.56,187.42,1.5367]
[1736520999069,2.6664,187.53,187.49,2.6669]
[1736520999264,31.9904634,187.56,187.49,2.6669]
[1736521000569,2.6661,187.55,187.42,1.5367]
[1736521001065,1.5146,187.58,187.42,1.5367]
[1736521001572,31.9904634,187.62,187.44,31.9904634]
[1736521001867,1.5522,187.63,187.47,31.9904634]
[1736521002069,1.5522,187.63,187.48,3.2342]
[1736521002667,1.5522,187.63,187.5,31.9904634]
[1736521002867,1.6212,187.64,187.5,31.9904634]
[1736521003062,33.5059634,187.67,187.58,2.6656]
[1736521003273,33.5059634,187.67,187.53,31.9904634]
[1736521003274,1.5155,187.67,187.53,31.9904634]
[1736521003667,2.6649,187.64,187.59,2.6655]
[1736521004063,1.5155,187.67,187.53,31.9904634]
[1736521004263,1.535,187.68,187.53,31.9904634]
[1736521005071,2.6649,187.63,187.53,31.9904634]
[1736521005270,1.535,187.68,187.53,31.9904634]
[1736521005472,2.6649,187.64,187.58,2.6655]
[1736521005674,31.9904634,187.64,187.51,1.5315]
[1736521006069,2.6654,187.6,187.55,2.666]
[1736521006268,31.9904634,187.64,187.51,1.5315]
[1736521006671,2.6657,187.58,187.53,2.6663]
[1736521006874,31.9904634,187.64,187.51,1.5315]
[1736521007765,31.9904634,187.64,187.55,2.666]
[1736521007986,31.9904634,187.64,187.51,1.5315]
[1736521008176,2.6656,187.59,187.54,2.6661]
[1736521008475,31.9904634,187.64,187.51,1.5315]
[1736521009475,2.6655,187.6,187.51,1.5315]
[1736521009668,31.9904634,187.64,187.51,1.5315]
[1736521010074,2.6654,187.6,187.51,1.5315]
[1736521010471,31.9904634,187.64,187.51,1.5315]
[1736521011076,31.9904634,187.64,187.53,2.6663]
[1736521011279,31.9904634,187.64,187.51,1.5315]
[1736521011481,19.66065791,187.64,187.51,1.5315]
[1736521011683,2.6654,187.61,187.55,2.6661]
[1736521011884,19.66065791,187.64,187.51,1.5315]
[1736521012082,19.66065791,187.67,187.51,1.5315]
[1736521013486,2.6651,187.62,187.51,1.5315]
[1736521014183,2.6653,187.61,187.57,2.6657]
[1736521014986,1.535,187.68,187.61,2.6652]
[1736521015180,1.5155,187.7,187.56,19.66065791]
[1736521015379,1.5155,187.7,187.53,5.98]
[1736521015380,1.6108,187.73,187.59,19.66065791]
[1736521015580,2.6643,187.68,187.64,2.6647]
[1736521015781,1.6108,187.73,187.64,2.6647]
[1736521016190,1.6108,187.73,187.6,1.6322]
[1736521016884,1.6108,187.73,187.66,2.6645]
[1736521017082,1.6108,187.73,187.6,1.6322]
[1736521017280,2.6641,187.7,187.6,1.6322]
[1736521017684,1.6108,187.73,187.6,1.6322]
[1736521018187,1.6108,187.73,187.63,2.665]
[1736521018387,1.6108,187.73,187.57,1.6303]
[1736521018388,19.66065791,187.68,187.57,1.6303]
[1736521019189,19.66065791,187.68,187.54,1.5946]
[1736521019488,19.66065791,187.65,187.54,1.5946]
[1736521019993,19.66065791,187.71,187.54,1.5946]
[1736521020194,19.66065791,187.71,187.56,19.66065791]
[1736521020487,0.85611876,187.7,187.54,1.5946]
[1736521020686,19.66065791,187.68,187.54,1.5946]
[1736521020888,19.66065791,187.65,187.54,1.5946]
[1736521021192,2.6655,187.6,187.54,1.5946]
[1736521021492,25.64065791,187.65,187.47,55.30565064]
[1736521021693,19.66065791,187.62,187.48,3.0545]
[1736521021990,2.6656,187.59,187.55,2.666]
[1736521022186,1.6248,187.67,187.48,3.0545]
[1736521022387,1.6251,187.71,187.56,19.66065791]
[1736521022592,2.664,187.7,187.66,2.6645]
[1736521022795,1.7845,187.76,187.59,19.66065791]
[1736521023091,2.6636,187.73,187.68,2.6641]
[1736521023394,1.6251,187.75,187.59,19.66065791]
[1736521023689,1.6251,187.75,187.67,2.6643]
[1736521023889,0.85565163,187.74,187.59,19.66065791]
[1736521024190,2.6642,187.69,187.64,2.6647]
[1736521024392,2.6642,187.69,187.57,4.6624]
[1736521024693,2.6642,187.69,187.64,2.6647]
[1736521024891,2.6642,187.69,187.57,4.6624]
[1736521025287,2.6642,187.69,187.6,2.6653]
[1736521025486,19.66065791,187.74,187.57,4.6624]
[1736521025687,1.6251,187.75,187.59,19.66065791]
[1736521025891,1.6251,187.75,187.62,19.66065791]
[1736521026387,1.6248,187.76,187.62,19.66065791]
[1736521026590,2.6631,187.77,187.62,19.66065791]
[1736521026991,2.6631,187.77,187.72,2.6636]
[1736521027591,2.6629,187.78,187.72,2.6636]
[1736521027792,25.64065791,187.8,187.72,2.6636]
[1736521028096,0.85558247,187.79,187.72,2.6636]
[1736521028293,2.6631,187.77,187.73,2.6635]
[1736521028497,25.64065791,187.8,187.73,2.6635]
[1736521028698,0.85553855,187.79,187.73,2.6635]
[1736521028886,0.85553855,187.79,187.62,19.66065791]
[1736521029093,19.66065791,187.77,187.62,19.66065791]
[1736521029287,19.66065791,187.77,187.57,4.6624]
[1736521029288,19.66065791,187.74,187.59,19.66065791]
[1736521029494,19.66065791,187.74,187.57,4.6624]
[1736521029694,19.66065791,187.77,187.59,19.66065791]
[1736521029897,0.85535783,187.76,187.59,19.66065791]
[1736521030199,25.64065791,187.8,187.62,19.66065791]
[1736521030399,0.85556998,187.79,187.62,19.66065791]